Cogmind - Beta 13 @@@ ROGUE MODE // 2024.04.15 @ 20:30:06 Player: Exceptionally Mediocre Result: Destroyed by 32-VM1(R) with Subdweller Beam Cannon Performance ------------- Evolutions (0) 0 Regions Visited (2) 400 Robots Destroyed (34) 170 Value Destroyed (706) 706 Prototype IDs (0) 0 Alien Tech Used (0) 0 Bonus (6) 6 TOTAL SCORE: 1282 Bonus ------- High Alert Combat Kills 6 Cogmind --------- Core Integrity 0/250 Matter 181/300 Energy 101/125 System Corruption 1% Temperature Cool (9) Movement Rolling (95) Ox1 Location -10/Subcaves Parts ------- > --- POWER (1) -------- Light Ion Engine > --- PROPULSION (2) --- Wheel Wheel > --- UTILITY (2) ------ Large Storage Unit Improved Terrain Scanner > --- WEAPON (2) ------- Beam Cannon > --- INVENTORY (15) --- Light Ion Engine Light Nuclear Core Wheel Wheel Compact Wheel Weight Redist. System Sensor Array Signal Interpreter Propulsion Shielding Medium Laser Beam Cannon Battle Rifle Peak State ------------ > --- POWER ------------ Ion Engine > --- PROPULSION ------- Wheel Compact Wheel > --- UTILITY ---------- Small Storage Unit Improved Terrain Scanner > --- WEAPON ----------- Medium Laser Particle Gun > --- INVENTORY -------- Ion Engine Light Ion Engine Light Nuclear Core Wheel Wheel Compact Wheel Grenade Launcher Mining Laser [Rating: 11] Favorites ----------- Power Ion Engine Engine Ion Engine Propulsion Wheel Wheel Wheel Utility Improved Terrain Scanner Device Improved Terrain Scanner Storage Large Storage Unit Weapon Grenade Launcher Energy Gun Particle Gun Energy Cannon Beam Cannon Launcher Grenade Launcher Build | -11 -10 -10 ------- Run | Yrd Mat Sub Slots Evolved . | . . . Power . | . . . Propulsion . | . . . Utility . | . . . Weapon . | . . . Parts Attached 19 | 7 6 6 Power 2 | 1 . 1 Engine 2 | 1 . 1 Core . | . . . Reactor . | . . . Propulsion 5 | 2 1 2 Treads . | . . . Leg . | . . . Wheel 5 | 2 1 2 Hover . | . . . Flight . | . . . Utility 3 | 2 1 . Device 1 | 1 . . Storage 2 | 1 1 . Processor . | . . . Hackware . | . . . Protection . | . . . Artifact . | . . . Weapon 9 | 2 4 3 Energy Gun 4 | 2 2 . Energy Cannon 2 | . . 2 Ballistic Gun . | . . . Ballistic Cannon . | . . . Launcher 3 | . 2 1 Special Weapon . | . . . Impact Weapon . | . . . Slashing Weapon . | . . . Piercing Weapon . | . . . Special Melee Weapon . | . . . Unidentified Prototypes . | . . . Parts Lost 6 | . 1 5 Power 1 | . . 1 Propulsion 3 | . 1 2 Utility . | . . . Weapon 2 | . . 2 Highest Loss Streak 2 | . 1 2 To Critical Strikes . | . . . Average Slot Usage (%) 98 | . 99 95 Engine 13 | . 14 10 Wheel 27 | . 27 27 Device 14 | . 14 14 Storage 14 | . 14 14 Energy Gun 14 | . 17 4 Energy Cannon 2 | . . 9 Launcher 10 | . 9 13 Naked Turns . | . . . Heaviest Build 32 | 15 32 32 Greatest Support 26 | 26 26 26 Greatest Overweight (x) 1 | 1 1 1 Average Overweight (x) . | . . 1 Largest Inventory Capacity 15 | 8 15 15 Average Capacity 12 | 6 12 15 Most Carried 15 | 8 15 15 Average Carried 11 | 3 11 13 Final Capacity 15 | 8 15 15 Final Carried 15 | 8 15 12 Class Distribution -------------------- 100% | Mutant Dominant Class ---------------- Mutant | -10/Materials Mutant | -10/Subcaves Resources | -11 -10 -10 ----------- Run | Yrd Mat Sub Matter Collected 596 | 270 225 101 Remotely . | . . . Salvage Created 713 | 120 490 103 Parts 71 | 13 45 13 Haulers Intercepted 2 | . 2 . Recyclers Shooed . | . . . Parts Field Recycled . | . . . Retrieved Matter . | . . . Parts Self-Destructed . | . . . Prevented . | . . . Kills | -11 -10 -10 ------- Run | Yrd Mat Sub Combat Hostiles Destroyed 19 | . 14 5 Guns 4 | . 3 1 AOE 15 | . 11 4 Classes Destroyed 10 | 2 7 1 Worker 2 | . 2 . Builder 3 | . 3 . Tunneler 2 | 2 . . Hauler 2 | . 2 . Recycler 2 | 1 1 . Operator 1 | . 1 . Watcher 3 | . 3 . Swarmer 6 | . 6 . Grunt 8 | . 8 . Subdweller 5 | . . 5 Best Kill Streak 5 | 3 5 2 Combat Bots Only 4 | . 4 2 Max Kills in Single Turn 4 | 1 4 1 Gunslinging . | . . . Exploded 2 | . 2 1 Melee . | . . . Uniques/NPCs Destroyed . | . . . Combat | -11 -10 -10 -------- Run | Yrd Mat Sub Hostile Shots Fired 66 | . 40 26 Missed 25 | . 18 7 Damage Taken 724 | . 239 485 Core 251 | . 62 189 Absorbed by Shields . | . . . Regen/Repaired (Parts) 20 | . 20 . Core Remaining (%) 100 | 100 . . Volleys Fired 61 | 4 36 21 Largest 2 | 2 2 2 Hottest 125 | 90 115 125 Shots Fired 88 | 8 49 31 Gun 47 | 8 32 7 Cannon 7 | . . 7 Launcher 34 | . 17 17 Special . | . . . Kinetic . | . . . Thermal 46 | 4 28 14 Explosive 34 | . 17 17 Electromagnetic 8 | 4 4 . Robot Hit Streak 7 | 4 5 7 Robot Miss Streak 3 | 1 3 2 Penetration Max . | . . . Secondary Targets . | . . . Shots Hit Robots 39 | 6 21 12 Core Hits 54 | 4 39 11 Critical Kills . | . . . Critical Parts Destroyed . | . . . Critical Strikes . | . . . Melee Attacks . | . . . Impact . | . . . Slashing . | . . . Piercing . | . . . Sneak Attacks . | . . . Combat Hostiles . | . . . Follow-up Attacks . | . . . Damage Inflicted 2158 | 92 1153 913 Guns 371 | 92 228 51 Cannons 53 | . . 53 Explosions 1734 | . 925 809 Melee . | . . . Ramming . | . . . Kinetic . | . . . Thermal 356 | 37 215 104 Explosive 1734 | . 925 809 Electromagnetic 68 | 55 13 . Impact . | . . . Slashing . | . . . Piercing . | . . . Highest Corruption 1 | . 1 1 Average Corruption 1 | . 1 1 Corruption Purged . | . . . Corruption Blocked . | . . . Effects 4 | . . 4 Message Errors 1 | . . 1 Matter Fused 2 | . . 2 Energy Discharges 1 | . . 1 Overload Shots . | . . . Overflow Damage 29 | . . 29 Projectiles . | . . . Explosions 29 | . . 29 Melee . | . . . Knockbacks . | . . . Impact . | . . . Kinetic . | . . . Secondary . | . . . Self-Inflicted Damage 57 | . . 57 Shots 2 | . . 2 Rammed . | . . . Targets Rammed . | . . . Kicked . | . . . Crushed . | . . . Highest Temperature 195 | 60 195 5 Average Temperature 66 | 25 74 5 Received Heat Transfer 153 | . 93 60 Siege Activations . | . . . Robots Corrupted . | . . . Combat Hostiles . | . . . Parts Fried . | . . . Impact Corruptions . | . . . Robots Melted . | . . . Combat Hostiles . | . . . Parts Melted . | . . . Heat Transferred 913 | 111 580 222 Parts Sabotaged . | . . . Parts Stolen . | . . . Parts Stripped . | . . . Power Chain Reactions . | . . . Alert | -11 -10 -10 ------- Run | Yrd Mat Sub Peak Influence 474 | 15 474 . Initial 9 | . 9 . Average 229 | 4 256 . Maximum Alert Level 2 | . 2 . Low Security (%) 37 | 100 30 . Level 1 56 | . 62 . Level 2 6 | . 6 . Level 3 . | . . . Level 4 . | . . . Level 5 . | . . . High Security . | . . . Max Security . | . . . Squads Dispatched 3 | . 3 . Investigation 2 | . 2 . Extermination . | . . . Reinforcement 1 | . 1 . Assault . | . . . Garrison . | . . . Intercept . | . . . Searches Triggered . | . . . Construction Impeded . | . . . Haulers Reinforced . | . . . Active Scanning Responses . | . . . Cargo Convoy Interrupts . | . . . Stealth | -11 -10 -10 --------- Run | Yrd Mat Sub Distress Signals 1 | . 1 . Communications Jammed . | . . . Distress Signals . | . . . Times Spotted 29 | . 21 8 Peak Tracking Total 5 | . 5 2 Tactical Retreats . | . . . Traps | -11 -10 -10 ------- Run | Yrd Mat Sub Traps Triggered 3 | . 3 . Indirectly . | . . . Trap Hack Attempts . | . . . Triggered . | . . . Disarmed . | . . . Reprogrammed . | . . . Reused . | . . . Traps Extracted . | . . . Installed . | . . . Triggered . | . . . Machines | -11 -10 -10 ---------- Run | Yrd Mat Sub Machines Disabled 5 | . 5 . Max in Single Turn 1 | . 1 . Machines Repaired . | . . . Machines Dismantled . | . . . Machines Sabotaged . | . . . Overloaded Fab Kills . | . . . Hacking | -11 -10 -10 --------- Run | Yrd Mat Sub Machines Accessed 5 | . 5 . Terminals 2 | . 2 . Fabricators . | . . . Repair Stations 1 | . 1 . Recycling Units 2 | . 2 . Scanalyzers . | . . . Garrison Access . | . . . Total Hacks 6 | . 6 . Successful 6 | . 6 . Failed . | . . . Catastrophic . | . . . Database Lockouts . | . . . Manual 2 | . 2 . Terminals 2 | . 2 . Fabricators . | . . . Repair Stations 2 | . 2 . Recycling Units 2 | . 2 . Scanalyzers . | . . . Garrison Access . | . . . Terminal Hacks . | . . . Fabricator Hacks . | . . . Repair Station Hacks 2 | . 2 . Scan Component 1 | . 1 . Repair 1 | . 1 . Recycling Unit Hacks 2 | . 2 . Retrieve Components 2 | . 2 . Scanalyzer . | . . . Garrison Access Hacks . | . . . Unauthorized Hacks 2 | . 2 . Terminals 2 | . 2 . Botnet 2 | . 2 . Fabricators . | . . . Repair Stations . | . . . Recycling Units . | . . . Scanalyzers . | . . . Garrison Access . | . . . Data Cores Recovered . | . . . Used . | . . . Hacking Detections 2 | . 2 . Full Trace Events . | . . . Feedback Events . | . . . Feedback Blocked . | . . . Robot Schematics Acquired . | . . . Robots Built . | . . . Authchips . | . . . Time . | . . . Total Robot Build Rating . | . . . Part Schematics Acquired . | . . . Parts Built . | . . . Authchips . | . . . Time . | . . . Total Part Build Rating . | . . . Parts Repaired 1 | . 1 . Time 26 | . 26 . Parts Recycled . | . . . Recycled Matter . | . . . Retrieved Matter . | . . . Retrieved Components 12 | . 12 . Parts Scanalyzed . | . . . Part Schematics Acquired . | . . . Parts Damaged . | . . . Bothacking | -11 -10 -10 ------------ Run | Yrd Mat Sub Used RIF Installer . | . . . Robots Hacked . | . . . Non-combat . | . . . Combat . | . . . Robot Hacks Applied . | . . . Relay Couplers Released . | . . . Fabnet Peak Effective % . | . . . Robots Rewired . | . . . Allies Hacked . | . . . Hacks Repelled . | . . . Allies | -11 -10 -10 -------- Run | Yrd Mat Sub Total Allies . | . . . Largest Group . | . . . Highest-Rated Group . | . . . Highest-Rated Ally . | . . . Total Orders . | . . . Ally Attacks . | . . . Total Damage . | . . . Kills . | . . . Allies Corrupted . | . . . Allies Melted . | . . . Intel | -11 -10 -10 ------- Run | Yrd Mat Sub Robot Analysis Total . | . . . Derelict Logs Recovered 1 | . . 1 Drone Launches . | . . . Drone Recoveries . | . . . Exploration | -11 -10 -10 ------------- Run | Yrd Mat Sub Turns Passed 1153 | 94 785 274 Spaces Moved 920 | 72 643 205 Core 6 | 6 . . Treads . | . . . Legs . | . . . Wheels 914 | 66 643 205 Hover . | . . . Flight . | . . . Fastest Speed 50 | 50 90 105 Average Speed 99 | 87 99 105 Slowest Speed 105 | 100 105 105 Overloaded Moves . | . . . Propulsion Burnouts . | . . . Robots Hopped . | . . . Cave-ins Triggered . | . . . Exploration Rate (%) 34 | 4 89 11 Regions Visited 2 Branch Regions 1 Pre-discovered Areas . | . . . Known Exits Taken . | . . . Unknown Exits Taken 2 | 1 1 . Scrap Searched 1 | . . 1 Spaces Dug 11 | . . 11 Terrain Destroyed 110 | . 25 85 Melee . | . . . Projectile . | . . . AOE 110 | . 25 85 Terrain Rammed . | . . . Walls Destroyed . | . . . Machines Disabled . | . . . Actions | -11 -10 -10 --------- Run | Yrd Mat Sub Total 1073 | 91 749 233 Wait 26 | . 26 . Move 918 | 71 642 205 Hop . | . . . Pick Up 32 | 9 22 1 Fast Attach 8 | 6 2 . Attach 6 | 1 1 4 Detach . | . . . Swap 5 | . 3 2 Drop 17 | . 17 . Fire 61 | 4 36 21 Melee . | . . . Ram . | . . . Kick . | . . . Crush . | . . . Escape Stasis . | . . . Rewire . | . . . Trap . | . . . Miscellaneous . | . . . Route ------- -11/Scrapyard -10/Materials (discovered 5 exits: [*Mat x3] / [*Min] / [*Sub]) -10/Subcaves (discovered 1 exit: [*Mat]) History --------- Turn | Location | Event 31 | -11/Scrapyard | Discovered new exit (range 15) 95 | -11/Scrapyard | Entered Materials 271 | -10/Materials | Discovered new exit (range 11) 294 | -10/Materials | Discovered new exit (range 15) 321 | -10/Materials | Build established: Mutant 514 | -10/Materials | Discovered new exit (range 13) 738 | -10/Materials | Discovered new exit (range 14) 752 | -10/Materials | Repaired Grenade Launcher 790 | -10/Materials | Discovered new exit (range 16) 880 | -10/Materials | Entered Subcaves 913 | -10/Subcaves | Core integrity fell below 50% 957 | -10/Subcaves | Discovered new exit (range 6) 966 | -10/Subcaves | Ambushed by Subdweller buried in earth 973 | -10/Subcaves | Core integrity fell below 20% 986 | -10/Subcaves | Learned Materials terminal intel 994 | -10/Subcaves | A swath of the cavern ceiling suddenly collapsed 1108 | -10/Subcaves | A swath of the cavern ceiling suddenly collapsed 1132 | -10/Subcaves | Disturbed a concealed Subdweller 1147 | -10/Subcaves | Ambushed by Subdweller buried in earth 1154 | -10/Subcaves | Destroyed by 32-VM1(R) with Subdweller Beam Cannon Last Messages --------------- A swath of the cavern ceiling suddenly collapses. 01021_ System corrupted: Energy discharge (-27). A swath of the cavern ceiling suddenly collapses. 01118_ ZR0GIFYNJX5OG66>%%4/1P76YW9LL%WNJS/= 01125_ Searching scrap... 01125_ Found Battle Rifle. 01125_ Found 39 Matter. 01126_ Acquired 39 matter. 01127_ Acquired Battle Rifle. 01148_ XW-CKM(R): "ARGHSUB!" 01148_ The unstable cave ceiling collapses. 01148_ Com. Wheel destroyed. 01150_ System corrupted: Matter fused (-9). 01150_ XW-CKM(R) destroyed. 01151_ 32-VM1(R): "ARGHSUB!" 01152_ Grenade Launcher destroyed. 01154_ The unstable cave ceiling collapses. 01154_ Sub. Shrapnel Launcher crushed. Map ----- +----------------------------------------------------+ | ??#??????????????????????????????????????????????? | | ?????????????????????????????????????????????????? | | ?????????????????????????????????????????????????? | | ?????????????????????????????????????????????????? | | ?????????????????????????????????????????????????? | | ?????????????????????????????????????????????????? | | ?????????????????????????????????????????????????? | | ?????????????????????????????????????????????????? | | ?????????????????????????????????????????????????? | | ????????????????????????#????????????????????????? | | ??????????????#?????????????#????????????????????? | | ???????????????#??????????#??????????????????????? | | ??#????????????????????#?????????????????????????? | | ??????#?#????????????????????????????????????????? | | ??????????????????????????#?????#????????????????? | | ????#???????????????###??####??#?????#???????????? | | ??????????????#???#?# ## ##??#????????????????? | | ?????????#??????????# <#???#???????????????? | | ????????????#???#???? & ! #????#??????????????? | | ???????????????????#?# #&%=!##???????????????????? | | ##????######??????#??# &R* ##???????????????????? | | ##?### ## #????????#? & ##???"??##??????????? | | ### #?######## # < < ;####???????????????? | | ### # # # #R #### ##??????????????? | | #;;# ?????????? | | @ ### # ?????????? | | ## # # # ### #"# ?????????? | | #### ## ########## #?????????#??????????? | | ## #??# #######????????#####????????????????????? | | ?# #??###?????????#????????#????????????????????? | | ?# #??????#?????????????????????????????????????? | | ?####????????##??#???????????????????????????????? | | #???#??????????#???????????????????????????????? | | #????#??????????#???#??????????????????????????? | | ##??????????????????????????????#???????????????? | | ##??#????????????????????????????????????????????? | | ?????????????????????????????????????????????????? | | ????????????????????????????????#????????????????? | | ?????????????????????????????????????????????????? | | ?????????????????????????????????????????????????? | | ?????????????????????????????????????????????????? | | ?????????????????????????????????????????????????? | | ?????????????????????????????????????????????????? | | ?????????????????????????????????????????????????? | | ?????????????????????????????????????????????????? | | ?????????????????????????????????????????????????? | | ?????????????????????????????????????????????????? | | ?????????????????????????????????????????????????? | | ?????????????????????????????????????????????????? | | ?????????????????????????????????????????????????? | +----------------------------------------------------+ Best States ------------- Heat Dissipation 25 Energy Generation 10 Energy Capacity 250 Matter Stores 300 Matter Capacity 300 Sight Range 16 Terrain Scan Range 16 Terrain Scan Density 10 Evasion (%) 42 Item Schematics ----------------- None Robot Schematics ------------------ None Fabricated ------------ Nothing Alien Tech Used ----------------- None Achievements -------------- None Challenges ------------ None Game ------ Seed AblativeModifiedFrame Manual? 0 Play Time 00:12:09 Cumulative 61.2 hours Start 2024.04.15 @ 20:12:38 End 2024.04.15 @ 20:30:06 Sessions 1 Manual Loads 0 Difficulty Rogue Special Mode None Game No. 72 Rogue 72 Adventurer 0 Explorer 0 Win Type - Total 0 Types 0/0/0/0/0/0/0/0/0 Lore% 18 Gallery% 39 Achievement% 29 Wizard Run 0 Options --------- Layout 1 ASCII 0 Keyboard 1 Movement Vi Keybinds 0 Fullscreen 1 Font 24/Smallcaps Map View 50x35 Zoom Use 0% Tactical HUD 1 Map Filters NONE Filters NONE Steam 1 RUN: d48872a6-a567-449e-930f-1969404ec300